{"text_format":"1","workbook":"xlsx","n_sheets":3,"sheets":["Uproszczony model taryfy","Dane","Kalkulacja"],"not_rendered":{"charts":0,"images":1,"macros":1,"external_links":2,"defined_names":12,"comments":0,"pivot_tables":0},"unopened":[],"bounds":{"document_bytes":16777216,"sheet_cells":100000,"rows_first":2000,"rows_last":500,"rows_between":2000,"halvings":0,"cell_chars":16384,"cell_head_chars":4096},"cells_cut":0,"cells_raw":0,"read":"whole","date_system":"1900"}

{"sheet":"Uproszczony model taryfy","index":0,"n_rows":20,"n_cols":11,"rows_kept":20,"cut":false,"hidden":false,"merged":[[4,7,4,8],[17,4,17,9]]}
[]
[]
[]
[null,null,null,null,"Uproszczony model taryfy EuRoPol GAZ s.a. *)"]
[null,null,null,null,null,null,null,"Proszę nacisnąć przycisk (< lub >)"]
[null,null,null,null,"Przychód docelowy ***)","PLN",{"$f":"I6*1000000","v":971732639.48650825},null,{"$f":"Dane!D5/1000","v":971.73263948650822},{"$f":"G6/Dane!D5/1000","v":1},"**)"]
[null,null,null,null,"Udział przychodów ENTRY w przychodzie regulowanym","%",{"$f":"Dane!E21/100","v":0.51516809524215657}]
[]
[null,null,null,null,"Zdolności zakontraktowane w punkcie ENTRY Kondratki","MWh/rok",{"$f":"I9*1000000","v":343514018.75837791},null,{"$f":"I11+I12","v":343.51401875837792},{"$f":"I9/Dane!D10*1000000","v":1},"**)"]
[null,null,null,null,"Zdolności zakontraktowane w punktach EXIT:"]
[null,null,null,null,"          EXIT Mallnow","MWh/rok",{"$f":"I11*1000000","v":313274018.75837791},null,{"$f":"Dane!D12/1000000","v":313.27401875837791},{"$f":"I11/Dane!D12*1000000","v":1},"**)"]
[null,null,null,null,"          EXIT PWP ","MWh/rok",{"$f":"I12*1000000","v":30240000},null,{"$f":"Dane!D11/1000000","v":30.24},{"$f":"I12/Dane!D11*1000000","v":1},"**)"]
[null,null,null,null,"Ceny referencyjne (stawki opłat przesyłowych):"]
[null,null,null,null,"          punkt Kondratki ","PLN/MWh/d/d",{"$f":"Dane!E17","v":1.4573},"gr/kWh/h/h",{"$f":"G14/10","v":0.14573},{"$f":"G14/Dane!D17","v":1},"**)"]
[null,null,null,null,"          punkt PWP","PLN/MWh/d/d",{"$f":"Dane!E18","v":0.48249999999999998},"gr/kWh/h/h",{"$f":"G15/10","v":4.8250000000000001E-2},{"$f":"G15/Dane!D18","v":1},"**)"]
[null,null,null,null,"          punkt Mallnow ","PLN/MWh/d/d",{"$f":"Dane!E19","v":1.4573},"gr/kWh/h/h",{"$f":"G16/10","v":0.14573},{"$f":"G16/Dane!D19","v":1},"**)"]
[]
[null,null,null,null,"*) dane różne od założeń do kalkulacji cen referencyjnych w taryfie zatwierdzonej na rok 2022 mają charakter hipotetyczny \n    (do symulacji zmian taryfy w stosunku do taryfy zatwierdzonej przez Prezesa URE)"]
[null,null,null,null,"**) założenia wg taryfy zatwierdzonej przez Prezesa URE  = 100%"]
[null,null,null,null,"***) przychód regulowany zatwierdzony przez Prezesa URE z wyłączeniem przychodów z tytułu usług rewersowych"]

{"sheet":"Dane","index":1,"n_rows":25,"n_cols":5,"rows_kept":25,"cut":false,"hidden":true,"merged":[[24,1,24,4],[2,1,3,1],[2,2,3,2],[2,3,2,4],[2,0,3,0],[23,1,23,4],[15,1,15,4],[19,1,19,4]]}
["Uproszczony model taryfy EuRoPol GAZ s.a. - dane"]
[]
["L.p.","Dane do obliczenia cen referencyjnych","Jedn.","Przesył w kierunku podstawowym"]
[null,null,null,"Dane do Taryfy 2022","Symulacja (w żótych polach dane importowane z zakładki: uproszczony model taryfy)"]
["1","Przychód kalkulacyjny, w tym:","tys. zł",{"$f":"D6+D7","v":971732.63948650821},{"$f":"'Uproszczony model taryfy'!I6*1000","v":971732.63948650821}]
["1.1","za przesył Kondratki - Mallnow","tys. zł",913073.33124612784,{"$f":"Kalkulacja!E30","v":913073.33124612784}]
["1.2","za przesył Kondratki - PWP","tys. zł",58659.308240380364,{"$f":"Kalkulacja!E27","v":58659.308240380371}]
["1.3","suma opłat za wejscie do systemu","tys. zł",500605.6529688976,{"$f":"Kalkulacja!E25+Kalkulacja!E28","v":500605.65296889766}]
["1.4","suma opłat za wyjście z systemu","tys. zł",471126.98651761049,{"$f":"Kalkulacja!E26+Kalkulacja!E29","v":471126.98651761049}]
["2","Moc zakontraktowana na wejściu Kondratki \npo przeliczeniu 98,5%)","MWh/rok",{"$f":"D11+D12","v":343514018.75837791},{"$f":"E11+E12","v":343514018.75837791}]
["3","Moc zakontraktowana na wyjściu PWP","MWh/rok",30240000,{"$f":"'Uproszczony model taryfy'!I12*1000000","v":30240000}]
["4","Moc zakontraktowanana na wyjściu Mallnow\n(po przeliczeniu 98,5%)","MWh/rok",313274018.75837791,{"$f":"'Uproszczony model taryfy'!I11*1000000","v":313274018.75837791}]
["5","Moc zakontraktowana na wejściu Mallnow 1)","MWh/rok",0,0]
["6","Odległość Kondratki-PWP (średnioważona) 2)","km",{"$f":"(581.6*1.18+367.4*1.7)/2.88","v":455.16250000000002},{"$f":"D14","v":455.16250000000002}]
["7","Odległość Kondratki-Mallnow","km",683.9,{"$f":"D15","v":683.9}]
["8","Stawki opłaty za wejście lub wyjście (ceny referencyjne)"]
["8.1","Punkt Kondratki","zł/MWh/d/d lub zł/MWh/h/h",1.4573,{"$f":"ROUND(Kalkulacja!E23,4)","v":1.4573}]
["8.2","Punkt PWP","zł/MWh/d/d lub zł/MWh/h/h",0.48249999999999998,{"$f":"ROUND(Kalkulacja!E24,4)","v":0.48249999999999998}]
["8.3","Punkt Mallnow","zł/MWh/d/d lub zł/MWh/h/h",1.4573,{"$f":"ROUND(Kalkulacja!E22,4)","v":1.4573}]
["9","Podział przychodów WE/WY"]
["9.1","Udział przychodów za wejście do systemu","%",{"$f":"D8/D5*100","v":51.51680952421566},{"$f":"E8/E$5*100","v":51.51680952421566}]
["9.1","Udział przychodów za wyjście z systemu","%",{"$f":"D9/D5*100","v":48.48319047578434},{"$f":"E9/E$5*100","v":48.48319047578434}]
["Uwagi:"]
["1)","W scenariuszu przepływu gazu w SGT założonym w RPM nie przewiduje się w fizycznego przepływu gazu w kierunku przeciwnym do podstawowego i kontraktowania w punkcie Mallnow usług długoterminowych na zasadach ciągłych dla tego przesyłu (przychód kalkulacyjny w poz. 1 został pomniejszony o szacowane przychody z tytułu rewersu)"]
["2)","Założono stałą proporcję wielkości przesyłu do punktów fizycznych: 59,03% do Włocławka; 40,97% do Lwówka (zgodnie z RPM)"]

{"sheet":"Kalkulacja","index":2,"n_rows":31,"n_cols":6,"rows_kept":31,"cut":false,"hidden":true,"merged":[[0,0,0,4],[13,0,20,0],[21,0,23,0],[24,0,29,0],[3,0,12,0]]}
["Kalkulacja cen referencyjnych (stawek przesyłowych dla uslug długoterminowych na zasadach ciągłych)"]
[null,"Lp","Wyszczególnienie","j.m.",2022]
["Podstawa kalkulacji stawek",{"$f":"COUNT(#REF!)+1","v":1},"Przychód kalkulacyjny (podstawa kalkulacji cen ref.) 1)","tys. PLN",{"$f":"Dane!E5","v":971732.63948650821}]
["Moce zamówione i jednostki kalkulacyjne do podziału kosztów kalkulacyjnych",{"$f":"COUNT(B$3:B3)+1","v":2},"Moc zamówiona w punkcie wejścia w Kondratkach (przeliczeniowa, po uwzgl. udziału 98,5% w opłatach)","MWh/rok",{"$f":"E5+E6","v":343514018.75837791}]
[null,{"$f":"COUNT(B$3:B4)+1","v":3},"Moc zamówiona w punkcie wyjścia w PWP","MWh/rok",{"$f":"Dane!E11","v":30240000}]
[null,{"$f":"COUNT(B$3:B5)+1","v":4},"Moc zamówiona w punkcie wyjścia Mallnow (przeliczeniowa, po uwzgl. udziału 98,5% w opłatach)","MWh/rok",{"$f":"Dane!E12","v":313274018.75837791}]
[null,{"$f":"COUNT(B$3:B6)+1","v":5},"Moc zamówiona ogółem (przeliczeniowa)","MWh/rok",{"$f":"E4","v":343514018.75837791}]
[null,{"$f":"COUNT(B$3:B7)+1","v":6},"Jedn. kalk. do podziału kosztów - przesył Kondratki - PWP ","MWh/km",{"$f":"Dane!E11*Dane!E14/100","v":137641140}]
[null,{"$f":"COUNT(B$3:B8)+1","v":7},"Jedn. kalk. do podziału kosztów - przesył Kondratki - Mallnow (przeliczeniowe, po uwzgl 98%)","MWh/km",{"$f":"Dane!E12*Dane!E15/100","v":2142481014.2885466}]
[null,{"$f":"COUNT(B$3:B9)+1","v":8},"Jednostki kalk. do podziału kosztów na pkt we/wy ogółem","tys.m3/100km",{"$f":"SUM(E8:E9)","v":2280122154.2885466}]
[null,{"$f":"COUNT(B$3:B10)+1","v":9},{"$f":"\"Udział kosztów zapewnienia przesyłu Kondratki PWP (poz.\"&B8&\"/poz.\"&B$10&\")\"","v":"Udział kosztów zapewnienia przesyłu Kondratki PWP (poz.6/poz.8)"},"%",{"$f":"IF(E$10>0,E8/E$10,\"\")","v":6.0365686873889164E-2}]
[null,{"$f":"COUNT(B$3:B11)+1","v":10},{"$f":"\"Udział kosztów zapewnienia przesyłu Kondratki - Mallnow (poz.\"&B9&\"/poz.\"&B$10&\")\"","v":"Udział kosztów zapewnienia przesyłu Kondratki - Mallnow (poz.7/poz.8)"},"%",{"$f":"IF(E$10>0,E9/E$10,\"\")","v":0.93963431312611079}]
[null,{"$f":"COUNT(B$3:B12)+1","v":11},"Suma udziałów","%",{"$f":"SUM(E11:E12)","v":1}]
["Alokacja kosztów kalkulacyjnych do poszczególnych punktów SGT",12,"Koszty kalkulacyjne przesyłu Kondratki - PWP","tys. PLN",{"$f":"E$3*E11","v":58659.308240380378}]
[null,13,"Koszty kalkulacyjne przesyłu Kondratki - Mallnow","tys. PLN",{"$f":"E$3*E12","v":913073.33124612784}]
[null,14,"Suma kosztów kalkulacyjnych (sprawdzenie)","tys. PLN",{"$f":"E14+E15","v":971732.63948650821},{"$f":"E16=E3","v":true}]
[null,15,"Koszty alokowane do punktu Mallnow (50% pozycji 13)","tys. PLN",{"$f":"0.5*E15","v":456536.66562306392}]
[null,16,"Część kosztów przesyłu Kondratki - PWP alokowana do pkt Kondratki","tys. PLN",{"$f":"E5*E22/1000","v":44068.98734583379}]
[null,17,"Całość kosztów alokowana do pkt Kondratki (poz. 15 + poz. 16)","tys. PLN",{"$f":"E17+E18","v":500605.65296889772}]
[null,18,"Część kosztów przesyłu Kondratki - PWP alokowana do pkt PWP (poz. 12 - poz. 16)","tys. PLN",{"$f":"E14-E18","v":14590.320894546589}]
[null,19,"Suma kosztów kalkulacyjnych (sprawdzenie: poz. 15 + poz. 17 + poz. 18)","tys. PLN",{"$f":"E17+E19+E20","v":971732.63948650821},{"$f":"E16=E21","v":true}]
["Stawki taryfowe w PLN",20,"Stawka w pkt Mallnow (poz. 15*1000/poz. 4)","PLN/MWh/d/d",{"$f":"E17*1000/E6","v":1.4573077826003238}]
[null,{"$f":"COUNT(B$3:B22)+1","v":21},"Stawka w pkt Kondratki (poz. 17*1000/poz.2)","PLN/MWh/d/d",{"$f":"E19*1000/E4","v":1.4573077826003236}]
[null,{"$f":"COUNT(B$3:B23)+1","v":22},"Stawka w pkt PWP (poz. 18*1000/poz. 3)","PLN/MWh/d/d",{"$f":"E20*1000/E5","v":0.4824841565656941}]
["Uszczegółowienie przychodów kalkulacyjnych EuRoPol GAZ s.a.",{"$f":"COUNT(B$3:B24)+1","v":23},"Przychody kalkulacyjne za przesył Kondratki - PWP; opłata za wejście w Kondratkach","tys. PLN",{"$f":"E5*E23/1000","v":44068.987345833782},{"$f":"E18=E25","v":true}]
[null,{"$f":"COUNT(B$3:B25)+1","v":24},"Przychody kalkulacyjne za przesył Kondratki - PWP; opłata za wyjście w PWP","tys. PLN",{"$f":"E5*E24/1000","v":14590.320894546589}]
[null,{"$f":"COUNT(B$3:B26)+1","v":25},"Opłaty za przesył Kondratki - PWP ","tys. PLN",{"$f":"E25+E26","v":58659.308240380371},{"$f":"E14=E27","v":true}]
[null,{"$f":"COUNT(B$3:B27)+1","v":26},"Przychody kalkulacyjne za przesył Kondratki - Mallnow; opłata za wejście w Kondratkach","tys. PLN",{"$f":"E6*E23/1000","v":456536.66562306386}]
[null,{"$f":"COUNT(B$3:B28)+1","v":27},"Przychody kalkulacyjne za przesył Kondratki - Mallnow; opłata za wyjście w Mallnow","tys. PLN",{"$f":"E6*E22/1000","v":456536.66562306392}]
[null,{"$f":"COUNT(B$3:B29)+1","v":28},"Opłaty za przesył Kondratki - Mallnow","tys. PLN",{"$f":"E28+E29","v":913073.33124612784},{"$f":"E27+E30","v":971732.63948650821}]
[null,"1)","Równy bazie kosztowej ogółem do kalkulacji cen referencyjnych (przychody regulowane za przesył gazu w kierunku podst.ogółem, bez rewersu)"]